Cogmind - Beta 12 @@@ ROGUE MODE // 2023.04.21 @ 12:14:31 Player: yota99 Result: Destroyed by D-53 Grenadier with Mini Grenade Launcher Performance ------------- Evolutions (0) 0 Regions Visited (2) 400 Robots Destroyed (11) 55 Value Destroyed (104) 104 Prototype IDs (2) 40 Alien Tech Used (0) 0 Bonus (0) 0 TOTAL SCORE: 599 Bonus ------- None Cogmind --------- Core Integrity 0/250 Matter 300/300 Energy 100/100 System Corruption 4% Temperature Cool (0) Movement Rolling (290) Ox14 Location -10/Mines Parts ------- > --- POWER (1) -------- (None) > --- PROPULSION (2) --- Wheel > --- UTILITY (2) ------ Cargo Storage Unit > --- WEAPON (2) ------- Light Assault Rifle > --- INVENTORY (30) --- Ion Engine Light Treads Light Treads Aluminum Leg Wheel Wheel Wheel Wheel Compact Wheel Small Storage Unit Cargo Storage Unit Medium Matter Pod (99) Sensor Array Signal Interpreter Seismic Detector Seismic Detector Seismic Detector Transport Network Coupler Targeting Computer Light Armor Plating Light Armor Plating Light Armor Plating Light Armor Plating Small Laser Rocket Launcher Welding Torch Blade Trap Blade Trap Blade Trap Peak State ------------ > --- POWER ------------ Ion Engine > --- PROPULSION ------- Wheel Compact Wheel > --- UTILITY ---------- Cargo Storage Unit > --- WEAPON ----------- Assault Rifle Light Assault Rifle > --- INVENTORY -------- Ion Engine Light Treads Light Treads Aluminum Leg Wheel Wheel Wheel Wheel Compact Wheel Small Storage Unit Cargo Storage Unit Medium Matter Pod Sensor Array Signal Interpreter Seismic Detector Seismic Detector Seismic Detector Transport Network Coupler Targeting Computer Light Armor Plating Light Armor Plating Light Armor Plating Small Laser Rocket Launcher Welding Torch Blade Trap Blade Trap Blade Trap [Rating: 10] Favorites ----------- Power Ion Engine Engine Ion Engine Propulsion Wheel Treads Light Treads Wheel Wheel Utility Cargo Storage Unit Device Seismic Detector Storage Cargo Storage Unit Weapon Assault Rifle Energy Gun Small Laser Ballistic Gun Assault Rifle Build | -11 -10 -10 ------- Run | Jun Mat Min Slots Evolved . | . . . Power . | . . . Propulsion . | . . . Utility . | . . . Weapon . | . . . Parts Attached 12 | 8 4 . Power 2 | 1 1 . Engine 2 | 1 1 . Core . | . . . Reactor . | . . . Propulsion 4 | 2 2 . Treads 2 | 2 . . Leg . | . . . Wheel 2 | . 2 . Hover . | . . . Flight . | . . . Utility 3 | 2 1 . Device 1 | 1 . . Storage 2 | 1 1 . Processor . | . . . Hackware . | . . . Protection . | . . . Artifact . | . . . Weapon 3 | 3 . . Energy Gun 1 | 1 . . Energy Cannon . | . . . Ballistic Gun 2 | 2 . . Ballistic Cannon . | . . . Launcher . | . . . Special Weapon . | . . . Impact Weapon . | . . . Slashing Weapon . | . . . Piercing Weapon . | . . . Special Melee Weapon . | . . . Unidentified Prototypes . | . . . Parts Lost 4 | . 1 3 Power 2 | . 1 1 Propulsion 1 | . . 1 Utility . | . . . Weapon 1 | . . 1 Highest Loss Streak 3 | . 1 3 To Critical Strikes . | . . . Average Slot Usage (%) 86 | . 88 85 Engine 14 | . 14 14 Treads 3 | . 5 . Wheel 24 | . 22 28 Device 1 | . 2 . Storage 14 | . 14 14 Ballistic Gun 28 | . 28 28 Naked Turns . | . . . Heaviest Build 148 | 14 148 148 Greatest Support 40 | 40 40 26 Greatest Overweight (x) 14 | . 14 14 Average Overweight (x) 3 | . 3 5 Largest Inventory Capacity 30 | 8 30 30 Average Capacity 22 | 7 25 30 Most Carried 30 | 8 23 30 Average Carried 15 | 5 13 26 Final Capacity 30 | 8 30 30 Final Carried 30 | 8 22 30 Class Distribution -------------------- 70% | Hauler-Mutant 29% | Mutant Dominant Class ---------------- Hauler-Mutant | -10/Materials Hauler-Mutant | -10/Mines Resources | -11 -10 -10 ----------- Run | Jun Mat Min Matter Collected 530 | 323 160 47 Remotely . | . . . Salvage Created 408 | 143 265 . Parts 38 | 19 19 . Haulers Intercepted 2 | . 2 . Recyclers Shooed 1 | . 1 . Parts Field Recycled . | . . . Retrieved Matter . | . . . Parts Self-Destructed . | . . . Prevented . | . . . Kills | -11 -10 -10 ------- Run | Jun Mat Min Combat Hostiles Destroyed 1 | . 1 . Guns 1 | . 1 . Classes Destroyed 6 | 3 3 . Worker 1 | 1 . . Tunneler 3 | 3 . . Hauler 2 | . 2 . Recycler 2 | 1 1 . Watcher 2 | . 2 . Grunt 1 | . 1 . Best Kill Streak 5 | 5 2 . Combat Bots Only 1 | . 1 . Max Kills in Single Turn 1 | 1 1 . Gunslinging . | . . . Exploded . | . . . Melee . | . . . Uniques/NPCs Destroyed . | . . . Combat | -11 -10 -10 -------- Run | Jun Mat Min Damage Taken 879 | . 129 750 Core 250 | . 11 239 Absorbed by Shields . | . . . Core Remaining (%) 100 | 100 . . Volleys Fired 35 | 13 20 2 Largest 2 | 2 2 2 Hottest 60 | 60 40 40 Shots Fired 70 | 26 40 4 Gun 70 | 26 40 4 Cannon . | . . . Launcher . | . . . Special . | . . . Kinetic 66 | 22 40 4 Thermal 4 | 4 . . Explosive . | . . . Electromagnetic . | . . . Robot Hit Streak 5 | 4 5 1 Robot Miss Streak 2 | 2 2 2 Penetration Max . | . . . Secondary Targets . | . . . Shots Hit Robots 38 | 14 23 1 Core Hits 20 | 7 12 1 Critical Kills 1 | . 1 . Critical Parts Destroyed . | . . . Critical Strikes 1 | . 1 . Destroy 1 | . 1 . Melee Attacks . | . . . Impact . | . . . Slashing . | . . . Piercing . | . . . Sneak Attacks . | . . . Combat Hostiles . | . . . Follow-up Attacks . | . . . Damage Inflicted 434 | 171 252 11 Guns 434 | 171 252 11 Cannons . | . . . Explosions . | . . . Melee . | . . . Ramming . | . . . Kinetic 402 | 139 252 11 Thermal 32 | 32 . . Explosive . | . . . Electromagnetic . | . . . Impact . | . . . Slashing . | . . . Piercing . | . . . Highest Corruption 4 | . . 4 Average Corruption 3 | . . 3 Corruption Purged . | . . . Corruption Blocked . | . . . Overload Shots . | . . . Overflow Damage . | . . . Projectiles . | . . . Explosions . | . . . Melee . | . . . Knockbacks . | . . . Impact . | . . . Kinetic . | . . . Secondary . | . . . Self-Inflicted Damage . | . . . Shots . | . . . Rammed 1 | 1 . . Targets Rammed 1 | 1 . . Kicked . | . . . Crushed . | . . . Highest Temperature 6 | . 6 . Average Temperature 6 | . 6 . Received Heat Transfer 95 | . 75 20 Siege Activations . | . . . Robots Corrupted . | . . . Combat Hostiles . | . . . Parts Fried . | . . . Impact Corruptions . | . . . Robots Melted . | . . . Combat Hostiles . | . . . Parts Melted . | . . . Heat Transferred 75 | 75 . . Parts Sabotaged . | . . . Parts Stolen . | . . . Parts Stripped . | . . . Power Chain Reactions . | . . . Missiles Intercepted . | . . . Alert | -11 -10 -10 ------- Run | Jun Mat Min Peak Influence 152 | 25 152 15 Initial 16 | . 16 . Average 36 | 12 63 . Maximum Alert Level . | . . . Low Security (%) 100 | 100 100 100 Level 1 . | . . . Level 2 . | . . . Level 3 . | . . . Level 4 . | . . . Level 5 . | . . . High Security . | . . . Max Security . | . . . Squads Dispatched 1 | . 1 . Investigation 1 | . 1 . Extermination . | . . . Reinforcement . | . . . Assault . | . . . Garrison . | . . . Intercept . | . . . Searches Triggered . | . . . Construction Impeded . | . . . Haulers Reinforced . | . . . Active Scanning Responses . | . . . Cargo Convoy Interrupts . | . . . Stealth | -11 -10 -10 --------- Run | Jun Mat Min Distress Signals . | . . . Communications Jammed . | . . . Distress Signals . | . . . Times Spotted 13 | . 7 6 Peak Tracking Total 5 | . 2 5 Tactical Retreats . | . . . Traps | -11 -10 -10 ------- Run | Jun Mat Min Traps Triggered 1 | . 1 . Indirectly . | . . . Trap Hack Attempts . | . . . Triggered . | . . . Disarmed . | . . . Reprogrammed . | . . . Reused . | . . . Traps Extracted . | . . . Installed . | . . . Triggered . | . . . Most Traps Carried 3 | . . 3 Machines | -11 -10 -10 ---------- Run | Jun Mat Min Machines Disabled . | . . . Max in Single Turn . | . . . Machines Repaired . | . . . Machines Sabotaged . | . . . Overloaded Fab Kills . | . . . Hacking | -11 -10 -10 --------- Run | Jun Mat Min Machines Accessed 2 | . 2 . Terminals 2 | . 2 . Fabricators . | . . . Repair Stations . | . . . Recycling Units . | . . . Scanalyzers . | . . . Garrison Access . | . . . Total Hacks 3 | . 3 . Successful 3 | . 3 . Failed . | . . . Catastrophic . | . . . Database Lockouts . | . . . Manual . | . . . Terminals 3 | . 3 . Fabricators . | . . . Repair Stations . | . . . Recycling Units . | . . . Scanalyzers . | . . . Garrison Access . | . . . Terminal Hacks 3 | . 3 . Prototype ID Bank 1 | . 1 . Alert Level 1 | . 1 . Zone Layout 1 | . 1 . Fabricator Hacks . | . . . Repair Station Hacks . | . . . Recycling Unit Hacks . | . . . Scanalyzer . | . . . Garrison Access Hacks . | . . . Unauthorized Hacks . | . . . Terminals . | . . . Fabricators . | . . . Repair Stations . | . . . Recycling Units . | . . . Scanalyzers . | . . . Garrison Access . | . . . Data Cores Recovered . | . . . Used . | . . . Hacking Detections 1 | . 1 . Full Trace Events . | . . . Feedback Events . | . . . Feedback Blocked . | . . . Robot Schematics Acquired . | . . . Robots Built . | . . . Authchips . | . . . Time . | . . . Total Robot Build Rating . | . . . Part Schematics Acquired . | . . . Parts Built . | . . . Authchips . | . . . Time . | . . . Total Part Build Rating . | . . . Parts Repaired . | . . . Time . | . . . Parts Recycled . | . . . Recycled Matter . | . . . Retrieved Matter . | . . . Retrieved Components . | . . . Parts Scanalyzed . | . . . Part Schematics Acquired . | . . . Parts Damaged . | . . . Bothacking | -11 -10 -10 ------------ Run | Jun Mat Min Used RIF Installer . | . . . Robots Hacked . | . . . Non-combat . | . . . Combat . | . . . Robot Hacks Applied . | . . . Relay Couplers Released . | . . . Fabnet Peak Effective % . | . . . Robots Rewired . | . . . Allies Hacked . | . . . Hacks Repelled . | . . . Allies | -11 -10 -10 -------- Run | Jun Mat Min Total Allies . | . . . Largest Group . | . . . Highest-Rated Group . | . . . Highest-Rated Ally . | . . . Total Orders . | . . . Ally Attacks . | . . . Total Damage . | . . . Kills . | . . . Allies Corrupted . | . . . Allies Melted . | . . . Intel | -11 -10 -10 ------- Run | Jun Mat Min Robot Analysis Total . | . . . Derelict Logs Recovered 1 | . . 1 Drone Launches . | . . . Drone Recoveries . | . . . Exploration | -11 -10 -10 ------------- Run | Jun Mat Min Turns Passed 868 | 181 456 231 Spaces Moved 435 | 82 223 130 Core 14 | 14 . . Treads 126 | 68 58 . Legs . | . . . Wheels 295 | . 165 130 Hover . | . . . Flight . | . . . Fastest Speed 50 | 50 160 165 Average Speed 161 | 141 164 167 Slowest Speed 290 | 160 290 290 Overloaded Moves . | . . . Propulsion Burnouts . | . . . Robots Hopped . | . . . Cave-ins Triggered 2 | . . 2 Exploration Rate (%) 23 | 5 41 24 Regions Visited 2 Branch Regions 1 Pre-discovered Areas . | . . . Known Exits Taken . | . . . Unknown Exits Taken 2 | 1 1 . Scrap Searched 2 | . . 2 Spaces Dug . | . . . Terrain Destroyed . | . . . Melee . | . . . Projectile . | . . . AOE . | . . . Terrain Rammed . | . . . Walls Destroyed . | . . . Machines Disabled . | . . . Actions | -11 -10 -10 --------- Run | Jun Mat Min Total 542 | 124 278 140 Wait 8 | . 8 . Move 431 | 81 222 128 Hop . | . . . Pick Up 46 | 18 20 8 Fast Attach . | . . . Attach 9 | 7 2 . Detach . | . . . Swap 3 | 1 2 . Drop 7 | 3 4 . Fire 35 | 13 20 2 Melee . | . . . Ram . | . . . Kick . | . . . Crush 1 | 1 . . Escape Stasis 2 | . . 2 Rewire . | . . . Trap . | . . . Miscellaneous . | . . . Route ------- -11/Junkyard -10/Materials -10/Mines History --------- Turn | Location | Event 48 | -11/Junkyard | Discovered new exit (range 15) 182 | -11/Junkyard | Entered Materials 563 | -10/Materials | Discovered new exit (range 16) 572 | -10/Materials | Build established: Hauler-Mutant 638 | -10/Materials | Entered Mines 645 | -10/Mines | Received a Rocket Launcher from a helpful Derelict 672 | -10/Mines | Learned Materials terminal intel 755 | -10/Mines | Found a hidden stash of uninstalled traps 834 | -10/Mines | Assembled infested the area 860 | -10/Mines | Crushed by falling debris 861 | -10/Mines | Core integrity fell below 50% 862 | -10/Mines | Crushed by falling debris 868 | -10/Mines | Core integrity fell below 20% 869 | -10/Mines | Destroyed by D-53 Grenadier with Mini Grenade Launcher Last Messages --------------- 00782_ Found Hammer. 00782_ Found 28 Matter. 00783_ Acquired 28 matter. 00786_ Acquired Lgt. Armor Plating. 00834_ ALERT: Infestation in the mines, dispatching Demolisher response squad. 00851_ C-30 ARC bursts open, deploying its payload. 00851_ D-53 Grenadier unfolds itself. 00860_ The unstable cave ceiling collapses. 00860_ Crushed by falling debris. 00860_ Com. Wheel destroyed. 00860_ System corrupted by crushing effect (+2). 00862_ The unstable cave ceiling collapses. 00862_ Crushed by falling debris. 00862_ Ion Engine destroyed. 00862_ System corrupted by crushing effect (+2). 00863_ as-37331 destroyed. 00863_ Assault Rifle destroyed. 00865_ The unstable cave ceiling collapses. 00865_ as-21204 destroyed. Map ----- +----------------------------------------------------+ | | | | | | | | | | | | | | | | | | | | | | | | | | | | | | | | | | | | | | | ???????????????????????????#######???????????????? | | ??##?????????????????????## ##??????????????? | | ??? ????????????????????## #??????????????? | | ???? ?????????????????### #??????????????? | | ???? ?????????######## #### #??????? | | ????? ????????#"%" d a #??????? | | ?????? ????????# ####### @ ### ???? | | ??????? ???????# #?????# #?????????????? | | ???????? ??????# #?????# ##?????????????? | | ##??????# ?????# #?????## ##??????????????? | | ##?????# ###### #??????##########???????????????? | | #?????# #???????????????????????????????? | | ##????### ######???????????????????????????????? | | #####??# #????????????????????????????????????? | | ## ##?# #????????????????????????????????????? | | ###/#####????????????????????????????????? | | #????????????????????????????????? | | # ###### #????????????????????????????????? | | # ##????? #????????????????????????????????? | | # ##??????? #????????????????????????????????? | | ##???????? ????????????????????????????????? | | ##?????????? ???????????????????????????????? | | ##???????????###??????????????????????????????? | | ##?????????????????????????????????????????????? | | ###??????????????????????????????????????????????? | | ?????????????????????????????????????????????????? | | ?????????????????????????????????????????????????? | | ?????????????????????????????????????????????????? | | ?????????????????????????????????????????????????? | | ?????????????????????????????????????????????????? | | ?????????????????????????????????????????????????? | +----------------------------------------------------+ Best States ------------- Heat Dissipation 25 Energy Generation 10 Energy Capacity 250 Matter Stores 300 Matter Capacity 300 Sight Range 16 Terrain Scan Density 10 Evasion (%) 50 Recoil Reduction 2 Item Schematics ----------------- None Robot Schematics ------------------ None Fabricated ------------ Nothing Alien Tech Used ----------------- None Achievements -------------- None Challenges ------------ None Game ------ Seed CooledModifiedPrototype Manual? 0 Play Time 00:08:50 Cumulative 39.2 hours Start 2023.04.21 @ 12:06:20 End 2023.04.21 @ 12:14:31 Sessions 1 Manual Loads 0 Difficulty Rogue Special Mode None Game No. 61 Rogue 61 Adventurer 0 Explorer 0 Win Type - Total 0 Types 0/0/0/0/0/0/0/0/0 Lore% 21 Gallery% 30 Achievement% 28 Wizard Run 0 Options --------- ASCII 0 Keyboard 0 Movement Numpad Keybinds 0 Fullscreen 1 Font 24/Smallcaps Map View 76x50 Tactical HUD 1 Map Filters NONE Filters NONE Steam 1 RUN: 78242fcc-3c32-4d90-9ea3-8b3d236e2e70